bitfinex/quotes_BTCUSD_20250527
["timestamp","ask_amount","ask_price","bid_price","bid_amount"]
[1748359872890,0.02029125,109630.0,109620.0,2.92115991]
[1748359873112,0.02941259,109630.0,109620.0,4.41931991]
[1748359873331,0.01117016,109630.0,109620.0,4.43383127]
[1748359873542,0.01117016,109630.0,109620.0,4.49363127]
[1748359873543,0.01117024,109630.0,109620.0,4.49363127]
[1748359873769,0.01117024,109630.0,109620.0,4.46373127]
[1748359873983,0.02029133,109630.0,109620.0,1.51378627]
[1748359874195,0.01117024,109630.0,109620.0,6.56378627]
[1748359874869,0.01117024,109630.0,109620.0,6.59449593]
[1748359875055,0.00204932,109630.0,109620.0,6.59549593]
[1748359875316,0.00204932,109630.0,109620.0,6.88393593]
[1748359875528,0.01117024,109630.0,109620.0,6.88593593]
[1748359875744,0.02029133,109630.0,109620.0,7.18243593]
[1748359876617,0.02029124,109630.0,109620.0,7.19611328]
[1748359877059,0.02029124,109630.0,109620.0,6.97863428]
[1748359877280,0.02941241,109630.0,109620.0,7.10360592]
[1748359877548,0.00912117,109630.0,109620.0,7.10360592]
[1748359877771,0.00912117,109630.0,109620.0,7.05440192]
[1748359878203,0.02736309,109630.0,109620.0,2.10170192]
[1748359878428,0.02736309,109630.0,109620.0,6.89688092]
[1748359879287,0.01824192,109630.0,109620.0,6.91729392]
[1748359879500,0.02736301,109630.0,109620.0,6.81726092]
[1748359879918,0.03648426,109630.0,109620.0,6.81726092]
[1748359880360,0.03648426,109630.0,109620.0,7.15170192]
[1748359880361,0.00912092,109630.0,109620.0,7.15170192]
[1748359880594,0.228057,109640.0,109630.0,0.20979583]
[1748359880823,0.24039148,109650.0,109640.0,0.54977643]
[1748359880824,0.02712,109650.0,109640.0,0.54977643]
[1748359881057,0.02712,109650.0,109640.0,6.38453975]
[1748359881355,0.02712,109650.0,109640.0,6.75641875]
[1748359881590,0.02023543,109670.0,109660.0,0.60823818]
[1748359881814,0.18443753,109690.0,109660.0,0.60823818]
[1748359881815,0.18433894,109690.0,109680.0,0.20058317]
[1748359882052,0.002,109690.0,109680.0,6.50769749]
[1748359882268,0.002,109690.0,109680.0,6.26084944]
[1748359882489,0.01160939,109690.0,109680.0,6.99875144]
[1748359882742,0.00249354,109690.0,109680.0,7.01247454]
[1748359882997,0.01160955,109690.0,109680.0,7.01247454]
[1748359883205,0.01160947,109690.0,109680.0,7.01247454]
[1748359883644,0.01260939,109690.0,109680.0,7.01247454]
[1748359884089,0.02828553,109700.0,109690.0,0.5496808]
[1748359884308,0.02837554,109700.0,109690.0,1.16029512]
[1748359884526,0.01137554,109700.0,109690.0,6.21029512]
[1748359884755,0.01137554,109700.0,109690.0,6.61029512]
[1748359884756,0.02049056,109700.0,109690.0,6.61029512]
[1748359885004,0.23926753,109700.0,109690.0,5.24707512]
[1748359885244,0.04783769,109700.0,109690.0,4.60123311]
[1748359885498,0.04783769,109700.0,109690.0,4.61034912]
[1748359885734,0.04883769,109700.0,109690.0,6.61029512]
[1748359886653,0.23115351,109700.0,109690.0,4.77295463]
[1748359886654,0.23115351,109700.0,109690.0,4.78207089]
[1748359886845,0.03972234,109700.0,109690.0,6.61941156]
[1748359887009,0.21290252,109730.0,109720.0,0.18228217]
[1748359887010,0.2219418,109730.0,109720.0,0.18228217]
[1748359887223,0.23105474,109730.0,109720.0,1.57958959]
[1748359887426,0.23105474,109730.0,109720.0,1.41116937]
[1748359887654,0.23105474,109730.0,109720.0,1.81116937]
[1748359888063,0.25855474,109730.0,109720.0,1.81116937]
[1748359888279,0.25955474,109730.0,109720.0,1.56043337]
[1748359888924,0.25955474,109730.0,109720.0,1.90043337]
[1748359889517,0.23205474,109730.0,109720.0,1.90043337]
[1748359889714,0.24058805,109730.0,109720.0,1.90043337]
[1748359889918,0.24058805,109730.0,109720.0,1.289953]
[1748359889919,0.23205474,109730.0,109720.0,1.289953]
[1748359890129,0.26808805,109730.0,109720.0,1.90039337]
[1748359890341,0.25955474,109730.0,109720.0,1.90039337]
[1748359890577,0.21208805,109730.0,109720.0,1.90039337]
[1748359890782,0.20355474,109730.0,109720.0,1.90039337]
[1748359891167,0.25865474,109730.0,109720.0,1.90039337]
[1748359891572,0.26718815,109730.0,109720.0,1.90039337]
[1748359891772,0.26718808,109730.0,109720.0,1.90039337]
[1748359892122,0.25865474,109730.0,109720.0,1.90039337]
[1748359892588,0.24165474,109730.0,109720.0,1.90039337]
[1748359892813,0.20923234,109750.0,109740.0,0.34911244]
[1748359893037,0.22760288,109750.0,109740.0,3.56794837]
[1748359893288,0.22760288,109750.0,109740.0,3.21089782]
[1748359893745,0.22760288,109750.0,109740.0,3.2326749]
[1748359894005,0.21849168,109750.0,109740.0,3.17480682]
[1748359894250,0.21849168,109750.0,109740.0,2.79584682]
[1748359894251,0.24739168,109750.0,109740.0,2.79584682]
[1748359894514,0.27589168,109750.0,109740.0,1.86010337]
[1748359895614,0.27589168,109750.0,109740.0,1.86110337]
[1748359896275,0.20270322,109770.0,109760.0,0.33145667]
[1748359896517,0.24942271,109770.0,109760.0,1.23725704]
[1748359896705,0.24942271,109770.0,109760.0,1.26884148]
[1748359896922,0.24942271,109770.0,109760.0,1.15014348]
[1748359897135,0.27812271,109770.0,109760.0,1.09137148]
[1748359897571,0.27812271,109770.0,109760.0,1.27358722]
[1748359897796,0.23914187,109770.0,109760.0,1.29180837]
[1748359898042,0.23856365,109770.0,109760.0,1.282698]
[1748359898242,0.22092288,109770.0,109760.0,1.2918087]
[1748359898463,0.22092288,109770.0,109760.0,1.282698]
[1748359898678,0.21281309,109770.0,109760.0,1.09137148]
[1748359898918,0.24091309,109770.0,109760.0,1.09137148]
[1748359899433,0.24091309,109770.0,109760.0,1.27358722]
[1748359899650,0.22391309,109770.0,109760.0,1.282698]
[1748359899860,0.24213266,109770.0,109760.0,1.09137148]
[1748359900082,0.24113266,109770.0,109760.0,1.27358722]
[1748359900311,0.24113266,109770.0,109760.0,1.10048218]
[1748359900312,0.23202304,109770.0,109760.0,1.10048218]
[1748359900599,0.23202263,109770.0,109760.0,1.29180837]
[1748359900821,0.2411325,109770.0,109760.0,1.30091915]
[1748359901279,0.00350408,109770.0,109760.0,6.5882698]
[1748359901506,0.01203421,109770.0,109760.0,5.5562528]
[1748359901723,0.00350408,109770.0,109760.0,5.5562528]
[1748359902190,0.01203379,109770.0,109760.0,5.3872148]
[1748359902415,0.05,109800.0,109790.0,0.36732388]
[1748359902642,0.0453683,109800.0,109790.0,6.52365209]
[1748359902889,0.04586138,109800.0,109790.0,6.89802415]
[1748359903119,0.04586138,109800.0,109790.0,6.92533615]
[1748359903367,0.002,109810.0,109800.0,1.58859149]
[1748359903604,0.002,109810.0,109800.0,5.55360524]
[1748359903605,0.02035983,109810.0,109800.0,5.55360524]
[1748359903825,0.22070561,109810.0,109800.0,3.04328303]
[1748359904038,0.03857268,109810.0,109800.0,3.07060409]
[1748359904280,0.03857268,109810.0,109800.0,3.07060425]
[1748359904492,0.02035999,109810.0,109800.0,3.06149712]
[1748359904727,0.02035974,109810.0,109800.0,6.11903112]
[1748359904955,0.03857234,109810.0,109800.0,6.11903112]
[1748359905178,0.03857243,109810.0,109800.0,6.11903112]
[1748359905417,0.03857234,109810.0,109800.0,6.11903112]
[1748359905658,0.0021478,109810.0,109800.0,6.72964544]
[1748359905899,0.0021478,109810.0,109800.0,6.21008507]
[1748359905900,0.01125369,109810.0,109800.0,6.21008507]
[1748359906134,0.0021478,109810.0,109800.0,6.21008507]
[1748359906372,0.0021478,109810.0,109800.0,7.18744544]
[1748359906594,0.0021478,109810.0,109800.0,7.18844544]
[1748359906883,0.08858158,109820.0,109810.0,1.06901204]
[1748359906884,0.0828346,109820.0,109810.0,1.06901204]
[1748359907122,0.27405618,109820.0,109810.0,6.10079969]
[1748359907337,0.29226795,109820.0,109810.0,2.06029216]
[1748359907561,0.28316256,109820.0,109810.0,2.45118569]
[1748359907780,0.28316256,109820.0,109810.0,2.54031107]
[1748359907999,0.27405709,109820.0,109810.0,1.96688637]
[1748359908212,0.30435709,109820.0,109810.0,1.218009]
[1748359908436,0.30435709,109820.0,109810.0,1.73756937]
[1748359908646,0.30435709,109820.0,109810.0,2.11532437]
[1748359908864,0.30435709,109820.0,109810.0,1.83997437]
[1748359909086,0.30435709,109820.0,109810.0,1.72356137]
[1748359909518,0.30435709,109820.0,109810.0,1.72556137]
[1748359909749,0.30435709,109820.0,109810.0,1.85535037]
[1748359909971,0.30435709,109820.0,109810.0,1.33579]
[1748359910198,0.33345709,109820.0,109810.0,0.900425]
[1748359910425,0.42413709,109820.0,109810.0,0.002]
[1748359910652,0.30435709,109820.0,109810.0,0.18364]
[1748359910859,0.59211709,109820.0,109810.0,0.18364]
[1748359911072,0.61961709,109820.0,109810.0,0.18364]
[1748359912192,0.71025709,109820.0,109810.0,0.18364]
[1748359912450,0.80131104,109820.0,109810.0,0.002]
[1748359912677,0.25003924,109810.0,109800.0,0.34]
[1748359912889,0.25003924,109810.0,109790.0,0.4]
[1748359912890,0.25005666,109800.0,109790.0,0.74]
[1748359913173,0.25005666,109800.0,109790.0,0.1672498]
[1748359913410,0.25005666,109800.0,109790.0,0.0001478]
[1748359913661,0.5809956,109800.0,109790.0,0.0001478]
[1748359913901,0.52077666,109800.0,109790.0,0.0001478]
[1748359914144,0.24216396,109800.0,109790.0,0.0001478]
[1748359914640,0.33321791,109800.0,109790.0,0.0001478]
[1748359915363,0.34775876,109800.0,109790.0,0.0001478]
[1748359915586,0.72615876,109800.0,109790.0,0.0001478]
[1748359915863,0.78014791,109800.0,109790.0,0.0001478]
[1748359916325,0.7886783,109800.0,109790.0,0.0001478]
[1748359916558,0.78014791,109800.0,109790.0,0.0001478]
[1748359916798,0.33421791,109800.0,109790.0,0.0001478]
[1748359917057,0.25297408,109790.0,109780.0,0.002]
[1748359917286,0.26150434,109790.0,109780.0,0.002]
[1748359917547,0.25297408,109790.0,109780.0,0.002]
[1748359918018,0.26150429,109790.0,109780.0,0.002]
[1748359918496,0.2615043,109790.0,109780.0,0.002]
[1748359918727,0.2615043,109790.0,109780.0,0.062]
[1748359918956,0.25297408,109790.0,109780.0,0.062]
[1748359919191,0.63141408,109790.0,109780.0,0.062]
[1748359919421,0.2615043,109790.0,109780.0,0.062]
[1748359919703,0.63141408,109790.0,109780.0,0.062]
[1748359920159,0.6484745,109790.0,109780.0,0.07065775]
[1748359920401,0.63994429,109790.0,109780.0,0.07065775]
[1748359920640,0.73952849,109790.0,109780.0,0.07065775]
[1748359920877,0.72252875,109790.0,109780.0,0.07065775]
[1748359921112,0.71399824,109790.0,109780.0,0.07065775]
[1748359921382,0.72310637,109790.0,109780.0,0.07065775]
[1748359921636,0.72310637,109790.0,109780.0,0.01065775]
[1748359921888,0.73163741,109790.0,109780.0,0.01065775]
[1748359922131,0.34466637,109790.0,109780.0,0.002]
[1748359923083,0.35319751,109790.0,109780.0,0.01067508]
[1748359923329,0.72310637,109790.0,109780.0,0.01935017]
[1748359924521,0.73163751,109790.0,109780.0,0.01935017]
[1748359924752,0.74848838,109790.0,109780.0,0.01935017]
[1748359924977,0.37104838,109790.0,109780.0,0.01935017]
[1748359925223,0.74944838,109790.0,109780.0,0.01935017]
[1748359926177,0.75797952,109790.0,109780.0,0.01935017]
[1748359926340,0.74421838,109790.0,109780.0,0.01935017]
[1748359926567,0.74421838,109790.0,109780.0,0.01067509]
[1748359927920,0.75274952,109790.0,109780.0,0.01067509]
[1748359928138,0.75274952,109790.0,109770.0,0.34]
[1748359928139,0.2505915,109780.0,109770.0,0.34]
[1748359928609,0.25080893,109770.0,109760.0,0.35598155]
[1748359928836,0.25080893,109770.0,109760.0,0.97402155]
[1748359929066,0.25080893,109770.0,109760.0,1.37402155]
[1748359929303,0.25080893,109770.0,109760.0,0.97402155]
[1748359929542,0.25080893,109770.0,109760.0,0.88172155]
[1748359930049,0.53848893,109770.0,109760.0,0.88172155]
[1748359930989,0.01821899,109770.0,109760.0,5.66930097]
[1748359931253,0.01821717,109780.0,109770.0,0.19130909]
[1748359931482,0.00910921,109770.0,109760.0,1.40377189]
[1748359931722,0.209528,109770.0,109760.0,1.79494555]
[1748359931955,0.20041863,109770.0,109760.0,1.36566955]
[1748359932206,0.20041863,109770.0,109760.0,1.53839255]
[1748359932507,0.22981863,109770.0,109760.0,1.36554955]
[1748359932695,0.22981863,109770.0,109760.0,1.72389455]
[1748359932954,0.20041863,109770.0,109760.0,2.15149992]
[1748359933176,0.20041863,109770.0,109760.0,2.15167692]
[1748359933399,0.20041863,109770.0,109760.0,1.86772892]
[1748359933644,0.20041863,109770.0,109760.0,1.89494192]
[1748359933873,0.20041863,109770.0,109760.0,1.03601155]
[1748359934102,0.26181863,109770.0,109760.0,0.97742355]
[1748359934389,0.26181863,109770.0,109760.0,0.95099755]
[1748359934616,0.03643782,109770.0,109760.0,6.22071711]
[1748359934836,0.03643848,109770.0,109760.0,6.19508934]
[1748359935057,0.01821949,109770.0,109760.0,6.19508934]
[1748359935241,0.21863762,109770.0,109760.0,6.17389962]
[1748359935692,0.20952817,109770.0,109760.0,3.16755866]
[1748359935905,0.02732903,109770.0,109760.0,3.01251285]
[1748359936115,0.20952817,109770.0,109760.0,3.00340265]
[1748359936345,0.20952817,109770.0,109760.0,3.00340281]
[1748359936560,0.21863812,109770.0,109760.0,3.02162346]
[1748359936783,0.21863812,109770.0,109760.0,5.36014618]
[1748359937002,0.21863812,109770.0,109760.0,5.12022692]
[1748359937214,0.20041896,109770.0,109760.0,2.81411344]
[1748359937423,0.19130909,109770.0,109760.0,3.02278692]
[1748359937666,0.19130909,109770.0,109760.0,3.33055592]
[1748359937880,0.21990909,109770.0,109760.0,2.61630792]
[1748359938156,0.24820909,109770.0,109760.0,0.90016455]
[1748359938389,0.28841825,109770.0,109760.0,0.90016455]
[1748359939116,0.24820909,109770.0,109760.0,0.90016455]
[1748359939373,0.24820909,109770.0,109760.0,0.50016455]
[1748359939616,0.71754304,109770.0,109760.0,0.003]
[1748359939837,0.73208389,109770.0,109760.0,0.003]
[1748359940055,0.81182371,109770.0,109760.0,0.003]
[1748359941131,0.82035688,109770.0,109760.0,0.002]
[1748359941354,0.81182371,109770.0,109760.0,0.002]
[1748359941576,0.81282371,109770.0,109760.0,0.002]
[1748359941792,0.81282371,109770.0,109760.0,0.01070757]
[1748359942249,0.41754371,109770.0,109760.0,0.01070757]
[1748359942473,0.71612389,109770.0,109760.0,0.002]
[1748359943132,0.72465748,109770.0,109760.0,0.002]
[1748359943361,0.71612389,109770.0,109760.0,0.002]
[1748359944026,1.24421864,109770.0,109760.0,0.002]
[1748359944249,1.38527267,109770.0,109760.0,0.002]
[1748359944473,0.01822863,109710.0,109700.0,0.72500744]
[1748359944700,0.0584,109740.0,109720.0,0.0731964]
[1748359944701,0.18229523,109730.0,109720.0,0.0731964]
[1748359944923,0.18429523,109730.0,109720.0,0.92899879]
[1748359945151,0.18429523,109730.0,109720.0,0.24355917]
[1748359945443,0.18429523,109730.0,109720.0,0.57485478]
[1748359945879,0.18429523,109730.0,109720.0,0.57534786]
[1748359946099,0.18429523,109730.0,109720.0,0.50415146]
[1748359946320,0.29362484,109730.0,109720.0,0.50415146]
[1748359946562,0.32432484,109730.0,109720.0,0.50415146]
[1748359947001,0.41537879,109730.0,109720.0,0.35119746]
[1748359947451,0.41537879,109730.0,109720.0,0.01119746]
[1748359947678,0.41537879,109730.0,109720.0,0.00249308]
[1748359947891,0.42991964,109730.0,109720.0,0.00049308]
[1748359948338,0.42991964,109730.0,109720.0,0.00149308]
[1748359948554,0.42991964,109730.0,109720.0,0.00049308]
[1748359948992,0.43091964,109730.0,109720.0,0.00049308]
[1748359949230,0.41391964,109730.0,109720.0,0.00049308]
[1748359950095,0.79227964,109730.0,109720.0,0.00049308]
[1748359950752,0.79231964,109730.0,109720.0,0.00049308]
[1748359951172,0.41391964,109730.0,109720.0,0.00049308]
[1748359951388,0.79231964,109730.0,109720.0,0.00049308]
[1748359951892,0.33359003,109730.0,109720.0,0.00049308]
[1748359952130,0.71195003,109730.0,109720.0,0.00049308]
[1748359952350,0.33359003,109730.0,109720.0,0.00049308]
[1748359952563,0.71195003,109730.0,109720.0,0.00049308]
[1748359954335,0.71199003,109730.0,109720.0,0.00049308]
[1748359954550,0.80141712,109730.0,109720.0,0.00049308]
[1748359956328,0.78441712,109730.0,109720.0,0.00049308]
[1748359957051,0.25407875,109730.0,109720.0,0.86005345]
[1748359957289,0.25407875,109730.0,109720.0,3.47319745]
[1748359957506,0.25407875,109730.0,109720.0,1.62799508]
[1748359957723,0.25407875,109730.0,109720.0,1.50876608]
[1748359957941,0.25407875,109730.0,109720.0,1.45236608]
[1748359958170,0.29771471,109730.0,109720.0,1.45236608]
[1748359958435,0.25407875,109730.0,109720.0,1.27965508]
[1748359958653,0.25407875,109730.0,109720.0,1.27060848]
[1748359958866,0.25407875,109730.0,109720.0,1.26194348]
[1748359959099,0.0627,109730.0,109720.0,1.5352796]
[1748359959315,0.04881299,109730.0,109720.0,6.78327468]
[1748359959576,0.04881299,109730.0,109720.0,6.80890262]
[1748359960062,0.04881299,109730.0,109720.0,6.82344347]
[1748359960274,0.04881299,109730.0,109720.0,6.79781399]
[1748359960499,0.04881299,109730.0,109720.0,6.77007674]
[1748359960714,0.04781299,109730.0,109720.0,6.77007674]
[1748359961147,0.01711299,109730.0,109720.0,1.72007674]
[1748359961368,0.01711299,109730.0,109720.0,6.77007674]
[1748359961592,0.23583014,109730.0,109720.0,4.58076537]
[1748359961817,0.02733832,109730.0,109720.0,4.0885463]
[1748359962052,0.03645151,109730.0,109720.0,3.9978663]
[1748359962315,0.21871707,109730.0,109720.0,6.68951493]
[1748359962550,0.03645151,109730.0,109720.0,6.68951493]
[1748359962787,0.03645151,109730.0,109720.0,6.68935056]
[1748359963020,0.03645143,109730.0,109720.0,6.68935056]
[1748359963254,0.0182253,109730.0,109720.0,6.68935056]
[1748359963493,0.00911203,109740.0,109730.0,0.54960438]
[1748359963752,0.03644845,109740.0,109730.0,6.2102187]
[1748359964204,0.20958603,109740.0,109730.0,5.75845713]
[1748359964441,0.21869822,109740.0,109730.0,5.54450953]
[1748359964720,0.002,109770.0,109760.0,0.53132644]
[1748359964948,0.02932862,109770.0,109760.0,6.10999726]
[1748359965176,0.20241888,109770.0,109760.0,1.55477612]
[1748359965402,0.20241888,109770.0,109760.0,1.55454212]
[1748359965838,0.20241888,109770.0,109760.0,1.53524812]
[1748359966058,0.20241888,109770.0,109760.0,1.53557683]
[1748359966280,0.20241888,109770.0,109760.0,1.13557683]
[1748359966717,0.20241888,109770.0,109760.0,0.87928583]
[1748359966901,0.20241888,109770.0,109760.0,0.86518983]
[1748359967116,0.23171888,109770.0,109760.0,0.85651971]
[1748359967576,0.26151888,109770.0,109760.0,0.85651971]
[1748359968671,0.26151888,109770.0,109760.0,0.86995172]
[1748359969297,0.20241888,109770.0,109760.0,0.86995172]
[1748359970646,0.24169914,109770.0,109760.0,0.86995172]
[1748359972456,0.21189914,109770.0,109760.0,0.86995172]
[1748359972666,0.24229914,109770.0,109760.0,0.86995172]
[1748359973284,0.24229914,109770.0,109760.0,0.82627572]
[1748359974291,0.30236771,109770.0,109760.0,0.49577472]
[1748359974490,0.24229914,109770.0,109760.0,0.77383572]
[1748359975319,0.24229914,109770.0,109760.0,0.35376072]
[1748359975737,0.24229914,109770.0,109760.0,0.01376072]
[1748359977591,0.22529914,109770.0,109760.0,0.01376072]
[1748359980538,0.38586529,109770.0,109760.0,0.00032871]
[1748359981042,0.39439821,109770.0,109760.0,0.00032871]
[1748359981260,0.40893906,109770.0,109760.0,0.00032871]
[1748359981482,0.40894012,109770.0,109760.0,0.00032871]
[1748359981707,0.40040614,109770.0,109760.0,0.00032871]
[1748359981929,0.40894024,109770.0,109760.0,0.00032871]
[1748359982145,0.74040614,109770.0,109760.0,0.00032871]
[1748359982646,1.2685007,109770.0,109760.0,0.00032871]
[1748359982864,1.25996651,109770.0,109760.0,0.00032871]
[1748359983088,0.74894051,109770.0,109760.0,0.00032871]
[1748359983313,0.74040614,109770.0,109760.0,0.00032871]
[1748359983728,1.31096651,109770.0,109760.0,0.00032871]
[1748359984444,1.30996651,109770.0,109760.0,0.00032871]
[1748359984664,1.29296651,109770.0,109760.0,0.00032871]
[1748359984933,1.29496651,109770.0,109760.0,0.00032871]
[1748359987622,0.21499584,109750.0,109740.0,0.002]
[1748359987835,0.78397245,109750.0,109740.0,0.002]
[1748359988500,1.12397245,109750.0,109740.0,0.002]
[1748359988934,1.64353282,109750.0,109740.0,0.002]
[1748359990061,1.64453282,109750.0,109740.0,0.002]
[1748359990286,1.31353282,109750.0,109740.0,0.002]
[1748359990507,1.31553282,109750.0,109740.0,0.002]
[1748359991165,0.35350894,109750.0,109740.0,0.002]
[1748359991837,0.71352629,109750.0,109740.0,0.002]
[1748359992056,0.74628979,109750.0,109740.0,0.002]
[1748359992276,0.74632979,109750.0,109740.0,0.002]
[1748359992911,0.45868979,109750.0,109740.0,0.002]
[1748359993125,0.36804979,109750.0,109740.0,0.002]
[1748359993576,0.74632979,109750.0,109740.0,0.002]
[1748359993790,0.81435489,109750.0,109740.0,0.002]
[1748359994838,0.74632979,109750.0,109740.0,0.002]
[1748359997023,0.36804979,109750.0,109740.0,0.002]
[1748359997232,0.74632979,109750.0,109740.0,0.002]
[1748359997903,0.74628979,109750.0,109740.0,0.002]
[1748359998146,0.36804979,109750.0,109740.0,0.002]
[1748359998353,0.80127784,109750.0,109740.0,0.002]
[1748359998778,0.78427784,109750.0,109740.0,0.002]
[1748359999008,0.33650894,109750.0,109740.0,0.002]
[1748359999466,0.18545499,109750.0,109740.0,0.524639]
[1748359999686,0.18545499,109750.0,109740.0,1.0379124]
[1748359999906,0.18545499,109750.0,109740.0,0.9096844]
[1748360000116,0.18545499,109750.0,109740.0,0.7138244]
[1748360000756,0.18345499,109750.0,109740.0,0.640628]
[1748360000977,0.18345499,109750.0,109740.0,0.414196]
[1748360001199,0.24878356,109750.0,109740.0,0.002]
[1748360001413,0.40063751,109750.0,109740.0,0.002]
[1748360001633,0.40063751,109750.0,109740.0,0.342]
[1748360001634,0.49119751,109750.0,109740.0,0.342]
[1748360002780,0.49119751,109750.0,109740.0,0.002]
[1748360002992,0.49973195,109750.0,109740.0,0.002]
[1748360003203,0.50573836,109750.0,109740.0,0.002]
[1748360003415,0.51427286,109750.0,109740.0,0.002]
[1748360003626,0.51427288,109750.0,109740.0,0.002]
[1748360004062,0.50573836,109750.0,109740.0,0.002]
[1748360006001,0.48873836,109750.0,109740.0,0.002]
[1748360006868,0.49073836,109750.0,109740.0,0.002]
[1748360010160,0.76375751,109750.0,109740.0,0.002]
[1748360013981,0.74675751,109750.0,109740.0,0.002]
[1748360016394,1.28085873,109750.0,109740.0,0.002]
[1748360016846,1.30819773,109750.0,109740.0,0.002]
[1748360017075,1.33375258,109750.0,109740.0,0.002]
[1748360021096,1.29119773,109750.0,109740.0,0.002]
[1748360022922,1.31674215,109750.0,109740.0,0.002]
[1748360023399,1.29119773,109750.0,109740.0,0.002]
[1748360024067,1.3505209,109750.0,109740.0,0.002]
[1748360024278,1.41342129,109750.0,109740.0,0.002]
[1748360024504,1.81342129,109750.0,109740.0,0.002]
[1748360024728,1.81342129,109750.0,109720.0,0.002]
[1748360024729,0.27803238,109730.0,109720.0,0.002]
[1748360024950,0.27803238,109730.0,109720.0,0.00214789]
[1748360024951,1.76807951,109730.0,109720.0,0.00214789]
[1748360025179,1.79885236,109730.0,109720.0,0.00214789]
[1748360025410,1.49101366,109730.0,109720.0,0.00214789]
[1748360025637,1.11293366,109730.0,109720.0,0.00214789]
[1748360025863,1.49101366,109730.0,109720.0,0.00214789]
[1748360026082,1.45654231,109730.0,109720.0,0.00214789]
[1748360026298,1.43100126,109730.0,109720.0,0.00214789]
[1748360026758,1.00292126,109730.0,109720.0,0.00214789]
[1748360026986,0.79919597,109730.0,109720.0,0.00214789]
[1748360027422,0.84919597,109730.0,109720.0,0.00214789]
[1748360028108,0.83219597,109730.0,109720.0,0.00214789]
[1748360029561,1.35106636,109730.0,109720.0,0.00214789]
[1748360029985,1.30106636,109730.0,109720.0,0.00214789]
[1748360030201,1.36560721,109730.0,109720.0,0.00214789]
[1748360030638,1.37560721,109730.0,109720.0,0.00214789]
[1748360030870,1.75403526,109730.0,109720.0,0.00214789]
[1748360031538,1.79873067,109730.0,109720.0,0.00214789]
[1748360035115,1.76658773,109730.0,109720.0,0.00214789]
[1748360035346,1.79989839,109730.0,109720.0,0.00214789]
[1748360036066,1.89586839,109730.0,109720.0,0.00214789]
[1748360036537,1.89886839,109730.0,109720.0,0.00214789]
[1748360039239,1.89879857,109730.0,109720.0,0.00214789]
[1748360040131,0.72218892,109710.0,109700.0,0.002]
[1748360040385,1.90716721,109710.0,109700.0,0.002]
[1748360040845,1.93452221,109710.0,109700.0,0.002]
[1748360041757,2.37782221,109710.0,109700.0,0.002]
[1748360042396,2.37682221,109710.0,109700.0,0.002]
[1748360042825,2.39014507,109710.0,109700.0,0.002]
[1748360044387,2.41558705,109710.0,109700.0,0.002]
[1748360044826,2.41558705,109710.0,109680.0,0.002]
[1748360044827,0.61520548,109690.0,109680.0,0.002]
[1748360045049,1.17527338,109690.0,109680.0,0.00209001]
[1748360045923,0.83527338,109690.0,109680.0,0.00209001]
[1748360046103,0.87170439,109690.0,109680.0,0.00209001]
[1748360046349,0.87270439,109690.0,109680.0,0.00209001]
[1748360048175,1.4265697,109690.0,109680.0,0.00209001]
[1748360049462,1.74833709,109690.0,109680.0,0.00209001]
[1748360049675,1.7665697,109690.0,109680.0,0.00209001]
[1748360050549,1.8265697,109690.0,109680.0,0.00209001]
[1748360050999,1.85203036,109690.0,109680.0,0.00209001]
[1748360051689,1.89675036,109690.0,109680.0,0.00209001]
[1748360051949,1.87877931,109690.0,109680.0,0.00209001]
[1748360052193,1.90942605,109690.0,109680.0,0.00209001]
[1748360052664,2.46229136,109690.0,109680.0,0.00209001]
[1748360052911,1.90842605,109690.0,109680.0,0.00209001]
[1748360053152,1.91042605,109690.0,109680.0,0.00209001]
[1748360054527,1.91040335,109690.0,109680.0,0.00209001]
[1748360055234,0.55514205,109670.0,109660.0,0.002]
[1748360055453,1.40699552,109670.0,109660.0,0.002]
[1748360055712,1.43245618,109670.0,109660.0,0.002]
[1748360056409,0.65342073,109670.0,109660.0,0.002]
[1748360056652,0.63165515,109670.0,109660.0,0.0632]
[1748360056874,1.00961515,109670.0,109660.0,0.0632]
[1748360057322,0.63165515,109670.0,109660.0,0.0632]
[1748360057559,0.29165515,109670.0,109660.0,0.61706531]
[1748360057786,0.2006012,109670.0,109660.0,0.74108231]
[1748360058007,0.2006012,109670.0,109660.0,0.75209031]
[1748360058905,0.2006012,109670.0,109660.0,0.75109031]
[1748360059146,0.2006012,109670.0,109660.0,0.75309031]
[1748360060295,0.2006012,109670.0,109660.0,1.09309031]
[1748360061451,0.2006012,109670.0,109660.0,3.4806923]
[1748360061676,0.18236527,109670.0,109660.0,3.04777721]
[1748360061898,0.18236527,109670.0,109660.0,2.8768463]
[1748360062132,0.18236527,109670.0,109660.0,2.98184531]
[1748360062585,0.18236367,109680.0,109670.0,0.4024]
[1748360062794,0.18236367,109680.0,109670.0,2.36061731]
[1748360063010,0.18236367,109680.0,109670.0,2.40942831]
[1748360063696,0.16536367,109680.0,109670.0,2.40942831]
[1748360064211,0.16536367,109680.0,109670.0,6.29826669]
[1748360064212,0.2188172,109680.0,109670.0,6.29826669]
[1748360064436,0.20058325,109680.0,109670.0,6.28814876]
[1748360064660,0.20058325,109680.0,109670.0,6.29826669]
[1748360064891,0.20058325,109680.0,109670.0,6.29826685]
[1748360065109,0.20058325,109680.0,109670.0,5.92577684]
[1748360065322,0.20058325,109680.0,109670.0,5.96738511]
[1748360065758,0.20058325,109680.0,109670.0,5.96738503]
[1748360065976,0.19146599,109680.0,109670.0,5.95826702]
[1748360066199,0.19146599,109680.0,109670.0,5.95926702]
[1748360066419,0.19146599,109680.0,109670.0,5.96838511]
[1748360066902,0.19146599,109680.0,109670.0,6.36838511]
[1748360067116,0.19146599,109680.0,109670.0,6.37750312]
[1748360067800,0.18247957,109690.0,109680.0,0.24284865]
[1748360068007,0.19159617,109690.0,109680.0,5.56401839]
[1748360068193,0.20071252,109690.0,109680.0,6.38817134]
[1748360068448,0.20071252,109690.0,109680.0,6.79728852]
[1748360069157,0.19159617,109690.0,109680.0,6.50078868]
[1748360069379,0.20982837,109690.0,109680.0,6.67063389]
[1748360069607,0.20071252,109690.0,109680.0,6.67063397]
[1748360069837,0.20071252,109690.0,109680.0,6.99239994]
[1748360070066,0.20071252,109690.0,109680.0,7.00151712]
[1748360070521,0.20071252,109690.0,109680.0,6.96029012]
[1748360070750,0.19144837,109690.0,109680.0,6.96029012]
[1748360070982,0.19144837,109690.0,109680.0,6.88173012]
[1748360071236,0.19144837,109690.0,109680.0,7.00351712]
[1748360071698,0.18233202,109690.0,109680.0,7.00351712]
[1748360071914,0.18233202,109690.0,109680.0,6.97259212]
[1748360072350,0.18233202,109690.0,109680.0,6.99538287]
[1748360072567,0.18233202,109690.0,109680.0,6.98626586]
[1748360073199,0.18233202,109690.0,109680.0,7.57105817]
[1748360073468,0.18233202,109690.0,109680.0,7.56194099]
[1748360073909,0.18233202,109690.0,109680.0,7.48633499]